[Event "US Masters 2024"]
[Site "Charlotte"]
[Date "2024.11.29"]
[Round "4.16"]
[White "Parkhov, Yair"]
[Black "Zhou, Liran"]
[Result "1/2-1/2"]
[ECO "E49"]
[WhiteElo "2523"]
[BlackElo "2390"]
[Annotator "TA"]
[PlyCount "138"]
[EventDate "2024.09.23"]
[EventType "swiss"]
[EventCountry "USA"]
[SourceTitle "playchess.com"]
[Source "ChessBase"]
[SourceQuality "1"]
[TimeControl "5400+30"]

{[%evp 63,138,141,185,86,111,110,193,224,392,232,245,227,255,253,268,280,285,285,502,511,633,623,641,642,604,535,580,451,458,458,451,451,480,240,242,244,213,218,214,156,215,212,360,368,445,260,549,32,33,0,8,0,0,0,0,0,0,0,0,0,0,7,0,0,8,8,8,8,8,8,8,8,8,8,8,8,8]} 1. d4 {[%emt 0:06:03]} Nf6 {[%emt 0:00:10]} 2. c4 {[%emt 0:00:05]} e6 {[%emt 0:00:05]} 3. Nc3 {[%emt 0:00:04]} Bb4 {[%emt 0:00:05]} 4. e3 {[%emt 0:00:04]} c5 {[%emt 0:00:57]} 5. Bd3 {[%emt 0:01:47]} Nc6 {[%emt 0:02:41]} 6. Nge2 {[%emt 0:02:26]} d5 {[%emt 0:05:34]} 7. cxd5 {[%emt 0:08:11]} exd5 {[%emt 0:00:32]} 8. a3 {[%emt 0:00:04]} Bxc3+ {[%emt 0:02:37]} 9. bxc3 {[%emt 0:00:08]} O-O {[%emt 0:01:42]} 10. f3 {[%emt 0:06:02]} Re8 {[%emt 0:04:47]} 11. O-O {[%emt 0:01:24]} b6 {[%emt 0:02:27]} 12. Ra2 {[%emt 0:11:16]} Na5 {[%emt 0:34:39]} 13. Ng3 {[%emt 0:15:49]} Be6 {[%emt 0:09:19] E49: Nimzo-Indian: Rubinstein: 5 Bd3 d5 6 a3 Bxc3+ 7 bxc3.} 14. Raf2 {[%emt 0:01:17]} cxd4 {[%emt 0:05:44]} 15. cxd4 {[%emt 0:01:58]} Rc8 {[%emt 0:05:27]} 16. Ba6 $146 {[%emt 0:02:40]} ({Predecessor:} 16. Bb1 Rc4 17. Ba2 Rc3 18. e4 dxe4 19. fxe4 Bxa2 20. Rxa2 Nxe4 21. Nf5 Nd6 22. Ng3 {0-1 Ezat,M (2390)-Pourkashiyan,A (2322) Titled Tuesday intern op 26th Apr Early blitz 2022 (3)}) 16... Rc3 {[%emt 0:02:38]} 17. Ne2 {[%emt 0:04:07]} Rc7 {[%emt 0:01:15]} 18. Bd3 {[%emt 0:01:06]} Qd7 {[%emt 0:05:59]} 19. a4 {[%emt 0:16:27]} Qd6 {[%emt 0:07:21]} 20. e4 {[%emt 0:01:19]} dxe4 {[%emt 0:00:20]} 21. Bf4 {[%emt 0:00:30]} Qd7 {[%emt 0:03:10]} 22. fxe4 {[%emt 0:00:44]} Rc4 {[%emt 0:01:13]} 23. d5 {[%emt 0:03:40]} Bg4 {[%emt 0:00:41]} 24. Bxc4 {[%emt 0:01:03]} Nxc4 {[%emt 0:00:03]} 25. Qd3 {[%emt 0:02:15]} Nb2 {[%emt 0:00:15]} 26. Qd4 {[%emt 0:00:53]} Nxe4 {[%emt 0:00:11]} 27. Qxb2 {[%emt 0:01:29]} Nxf2 {[%emt 0:00:04]} 28. Rxf2 {[%emt 0:00:18]} Qxd5 {[%emt 0:01:45]} 29. Ng3 {[%emt 0:03:27]} h5 {[%emt 0:02:16]} 30. h3 {[%emt 0:00:31]} h4 {[%emt 0:00:45]} 31. Nf1 {[%emt 0:02:01]} Be6 {[%emt 0:00:21]} 32. Ne3 {[%emt 0:00:51]} (32. Be5 $18 f6) 32... Qe4 {[%emt 0:00:19]} 33. Qc2 {[%emt 0:01:36]} (33. Qb5 $18 Rc8 34. a5) 33... Qd4 {[%emt 0:00:14]} 34. Qd1 {[%emt 0:00:42]} Rd8 {[%emt 0:00:49]} (34... Qxd1+ $16 35. Nxd1 Rc8) 35. Qh5 $18 {[%emt 0:01:26]} Qxa4 $2 {[%emt 0:00:29]} (35... f6 {might work better.} 36. Qxh4 Qxa4) 36. Qxh4 {[%emt 0:04:47]} (36. Be5 $142 {Qg5 is the strong threat.} Qe8 37. Qg5 (37. Qxh4 f6 $18)) 36... Rd3 {[%emt 0:00:27]} 37. Kh2 {[%emt 0:00:00]} Qe4 {[%emt 0:00:29]} 38. Rf3 {[%emt 0:00:00]} Rd4 {[%emt 0:00:51]} 39. Qg3 {[%emt 0:00:00]} Qg6 {[%emt 0:00:21]} 40. Qf2 {[%emt 0:00:00]} Ra4 $2 {[%emt 0:00:32]} (40... Re4 41. Bb8 Qh5) 41. Be5 $18 {[%emt 0:00:00]} Qh5 {[%emt 0:00:39]} 42. Qg3 {[%emt 0:01:49]} Qg6 {[%emt 0:00:05]} 43. Qe1 {[%emt 0:00:22]} Qe4 {[%emt 0:00:45]} 44. Qc3 {[%emt 0:00:20]} Qb4 {[%emt 0:00:46]} 45. Qc7 {[%emt 0:01:00]} Qc5 {[%emt 0:00:26]} 46. Qd8+ {[%emt 0:00:35]} Qf8 {[%emt 0:00:06]} 47. Qg5 {[%emt 0:00:33]} Ra5 {[%emt 0:00:52]} 48. Qf4 {[%emt 0:00:02]} (48. Qg3 $142) 48... f6 $18 {[%emt 0:00:15]} 49. Bc3 {[%emt 0:01:02]} Rg5 {[%emt 0:00:34]} 50. h4 {[%emt 0:00:07]} Rh5 {[%emt 0:00:32]} 51. Be1 {[%emt 0:01:02]} a5 {[%emt 0:00:39]} (51... Qe8 $16 52. Bc3 Qe7) 52. g4 $18 {[%emt 0:00:24]} Rb5 {[%emt 0:00:35] [#]} (52... Rc5 $142 53. g5 f5) 53. g5 $1 $18 {[%emt 0:00:08]} Rb2+ {[%emt 0:00:33]} 54. Bf2 {[%emt 0:00:03]} (54. Kg1 $142 {[%cal Rg5f6]} Rb1 55. Kf2) 54... Qb4 $2 {[%emt 0:00:23]} (54... Rb4 55. Qg3 Kh8) 55. Qxb4 $2 {[%emt 0:01:17]} (55. Qg3 $18 fxg5 56. Qe5 (56. Qxg5 Qd6+ 57. Kg1 Rb1+ 58. Kg2 Qd7 $16) (56. hxg5 Rd2 $18) 56... Qxh4+ 57. Kg2 Bh3+ 58. Kg1) 55... axb4 $14 {[%emt 0:00:20]} 56. gxf6 {[%emt 0:00:06]} Re2 {[%emt 0:00:33]} 57. Kg3 {[%emt 0:00:50]} b3 {[%emt 0:00:21]} 58. Rf4 {[%emt 0:00:46]} b2 {[%emt 0:00:22]} 59. Rb4 {[%emt 0:00:06]} Ba2 {[%emt 0:00:03]} 60. Kf3 {[%emt 0:00:32]} Rxf2+ {[%emt 0:00:05]} 61. Kxf2 {[%emt 0:00:05]} b1=Q {[%emt 0:00:04]} 62. Rxb1 {[%emt 0:00:37]} Bxb1 {[%emt 0:00:04]} 63. Nd5 {[%emt 0:00:07]} gxf6 {[%emt 0:00:04]} 64. Nxb6 {[%emt 0:00:06]} Kg7 {[%emt 0:00:06]} 65. Kg3 $1 {[%emt 0:00:04]} Bg6 {[%emt 0:00:14]} 66. Nd5 {[%emt 0:00:07]} Kf7 {[%emt 0:00:05]} 67. Kf4 {[%emt 0:00:11]} Kg7 {[%emt 0:00:04]} 68. Ne3 {[%emt 0:00:19]} Kf7 {[%emt 0:00:05]} 69. Ng4 $1 {[%emt 0:00:23]} Kg7 {[%emt 0:00:04]} 1/2-1/2

[Event "US Masters 2024"]
[Site "Charlotte"]
[Date "2024.11.29"]
[Round "4.17"]
[White "Prithu Gupta"]
[Black "Repka, Christopher"]
[Result "1-0"]
[ECO "C77"]
[WhiteElo "2412"]
[BlackElo "2520"]
[Annotator "TA"]
[PlyCount "71"]
[EventDate "2024.09.23"]
[EventType "swiss"]
[EventCountry "USA"]
[SourceTitle "playchess.com"]
[Source "ChessBase"]
[SourceQuality "1"]
[TimeControl "5400+30"]

{[%evp 16,71,27,25,24,31,27,20,20,17,27,17,39,0,0,0,0,0,-15,-41,-30,-20,0,-47,-11,-30,0,-12,0,0,0,0,88,24,44,18,24,28,39,29,98,89,112,109,549,528,526,537,1231,1233,1212,1208,1151,1159,29977,29976,29990,29984]} 1. e4 {[%emt 0:20:42]} e5 {[%emt 0:01:36]} 2. Nf3 {[%emt 0:00:15]} Nc6 {[%emt 0:00:08]} 3. Bb5 {[%emt 0:00:02]} a6 {[%emt 0:04:18]} 4. Ba4 {[%emt 0:00:01]} Nf6 {[%emt 0:00:20]} 5. d3 {[%emt 0:00:01]} d6 {[%emt 0:00:55]} 6. c3 {[%emt 0:00:07]} g6 {[%emt 0:00:13]} 7. O-O {[%emt 0:00:02]} Bg7 {[%emt 0:00:03]} 8. Re1 {[%emt 0:00:06]} O-O {[%emt 0:00:06]} 9. h3 {[%emt 0:00:04]} b5 {[%emt 0:00:56]} 10. Bc2 {[%emt 0:00:07]} a5 {[%emt 0:00:45]} 11. a4 {[%emt 0:00:03]} b4 {[%emt 0:00:04] The position is equal.} 12. Be3 {[%emt 0:00:05]} Rb8 {[%emt 0:04:28]} 13. Nbd2 {[%emt 0:00:02]} Ba6 {[%emt 0:02:08]} 14. d4 {[%emt 0:03:47]} bxc3 {[%emt 0:01:22]} 15. bxc3 {[%emt 0:00:01]} exd4 {[%emt 0:00:15]} 16. cxd4 {[%emt 0:00:06]} Nb4 {[%emt 0:00:11][%cal Oc7c5]} 17. Bb1 {[%emt 0:04:02]} Re8 {[%emt 0:18:15][%cal Oc7c5]} 18. Ra3 {[%emt 0:03:24]} c6 {[%emt 0:13:37]} 19. Qc1 {[%emt 0:06:00]} (19. Bg5 $11 Qb6 20. Rc3) 19... c5 {[%emt 0:14:47]} 20. dxc5 {[%emt 0:01:47] Bf4 would now be deadly.} dxc5 {[%emt 0:03:36][%cal Oc5c4]} 21. Bf4 {[%emt 0:11:17]} Rb7 {[%emt 0:11:45]} 22. e5 {[%emt 0:00:05]} Nfd5 {[%emt 0:00:46]} 23. Bg5 $36 {[%emt 0:01:03][%mdl 2048] White is pushing.} f6 {[%emt 0:04:20] [#]} (23... Qb6 $1 $11) 24. exf6 {[%emt 0:00:49]} (24. Bh4 $1 $16) 24... Rxe1+ $11 {[%emt 0:01:56]} 25. Qxe1 {[%emt 0:00:02]} Bxf6 {[%emt 0:00:06]} 26. Qe6+ {[%emt 0:00:24]} Kg7 {[%emt 0:00:37]} 27. Ne4 {[%emt 0:00:56]} Rb6 {[%emt 0:08:15]} (27... Bxg5 $1 $11 28. Nfxg5 Re7) 28. Qg4 $16 {[%emt 0:02:24] White is more active.} Bc8 {[%emt 0:02:22] [#]} 29. Qh4 {[%emt 0:00:09][%cal Oe4f6] Hoping for Nxf6!} Nc6 $2 {[%emt 0:01:11][%mdl 8192] This costs Black the game.} (29... Be7 $16 {is tougher.}) 30. Qh6+ $18 {[%emt 0:01:52]} Kh8 {[%emt 0:00:22]} 31. Ba2 {[%emt 0:04:27] Nxf6 would kill now.} c4 {[%emt 0:00:03]} 32. Nxf6 {[%emt 0:00:18]} Nxf6 {[%emt 0:00:08]} 33. Re3 {[%emt 0:00:06]} Ne7 {[%emt 0:00:57]} 34. Ne5 {[%emt 0:01:13]} Qg8 {[%emt 0:05:33] Prevents Nf7+.} 35. Nxc4 {[%emt 0:00:56]} Re6 {[%emt 0:01:02]} 36. Bxf6+ {[%emt 0:01:26] Weighted Error Value: White=0.09 (flawless) /Black=0.64.  Loses game:     	---       	Black=1      Mistake:       	White=2     	Black=2      Inaccurate:     	White=3     	Black=3      OK:         	White=11    	Black=11     Best:        	White=1     	Black=1} 1-0

[Event "US Masters 2024"]
[Site "Charlotte"]
[Date "2024.11.29"]
[Round "4.18"]
[White "Koustav Chatterjee"]
[Black "Tokhirjonova, Gulrukhbegim"]
[Result "1-0"]
[ECO "E04"]
[WhiteElo "2510"]
[BlackElo "2385"]
[Annotator "TA"]
[PlyCount "71"]
[EventDate "2024.09.23"]
[EventType "swiss"]
[EventCountry "USA"]
[SourceTitle "playchess.com"]
[Source "ChessBase"]
[SourceQuality "1"]
[TimeControl "5400+30"]

{[%evp 13,71,-12,8,0,3,0,0,0,0,-17,0,0,7,-42,-39,-16,28,30,37,0,19,0,0,0,29,14,27,26,31,22,27,25,54,34,56,49,52,32,68,62,64,53,49,69,63,68,62,61,61,53,489,489,482,427,944,938,890,900,920,884]} 1. Nf3 {[%emt 0:00:19]} Nf6 {[%emt 0:07:30]} 2. c4 {[%emt 0:01:08]} e6 {[%emt 0:01:30]} 3. Nc3 {[%emt 0:00:26]} d5 {[%emt 0:00:09]} 4. d4 {[%emt 0:00:06]} c6 {[%emt 0:01:03]} 5. g3 {[%emt 0:03:53]} dxc4 {[%emt 0:01:52]} 6. Bg2 {[%emt 0:00:14]} b5 {[%emt 0:01:31]} 7. Ne5 {[%emt 0:13:16]} Nd5 {[%emt 0:01:18]} 8. O-O {[%emt 0:01:09] aiming for Nxd5.} Be7 {[%emt 0:06:52]} 9. a4 {[%emt 0:08:59]} b4 {[%emt 0:01:10]} 10. Nb1 {[%emt 0:06:04][%cal Oe2e4,Bc3b1,Bb1d2,Bd2b3][%mdl 32] The position is equal.} Ba6 {[%emt 0:00:33]} 11. e4 {[%emt 0:09:49]} Nf6 {[%emt 0:06:33]} 12. Re1 {[%emt 0:01:24]} O-O {[%emt 0:00:50]} 13. Be3 {[%emt 0:10:30]} (13. Nd2 $11 {is more appropriate.}) 13... Nfd7 {[%emt 0:07:04] White must now prevent ...Nxe5.} 14. Nf3 {[%emt 0:06:57]} Qa5 {[%emt 0:05:42]} (14... e5 $5) 15. Nbd2 {[%emt 0:01:26]} Nb6 {[%emt 0:03:44]} 16. Bf1 {[%emt 0:05:52]} c3 {[%emt 0:23:12]} 17. Nb3 {[%emt 0:02:03]} Qh5 {[%emt 0:00:27]} 18. bxc3 {[%emt 0:00:24]} bxc3 {[%emt 0:00:07][%cal Oc3c2] [#] Strongly threatening ...c2!} 19. Ne5 {[%emt 0:02:18]} Qxd1 {[%emt 0:00:14]} 20. Rexd1 {[%emt 0:00:05]} Bxf1 {[%emt 0:01:14]} 21. Kxf1 {[%emt 0:00:10]} N6d7 {[%emt 0:01:28][%cal Bb6d7,Bd7f6,Bf6e4][%mdl 32]} 22. a5 {[%emt 0:09:05]} f5 {[%emt 0:06:05]} 23. Rac1 {[%emt 0:02:23]} Nf6 {[%emt 0:04:05]} 24. Rxc3 {[%emt 0:01:18]} Nxe4 {[%emt 0:00:02]} 25. Rc2 {[%emt 0:01:36]} Rd8 {[%emt 0:00:35][%cal Bf8d8,Bd8d5,Bd5a5][%mdl 32]} 26. Rb1 {[%emt 0:04:28]} Rd5 {[%emt 0:01:35]} 27. f3 {[%emt 0:02:26]} (27. Nxc6 $6 Nxc6 28. Rxc6 Rb5 $11) 27... Nf6 {[%emt 0:00:21]} 28. Nc5 $1 $36 {[%emt 0:00:12][%mdl 2048] White is more active.} ({Reject} 28. Nxc6 Nxc6 29. Rxc6 Rb5 $15) 28... Bxc5 {[%emt 0:07:22]} 29. Rxc5 {[%emt 0:00:02]} Na6 $1 {[%emt 0:00:36] Black is weak on the dark squares} 30. Rxc6 {[%emt 0:00:32]} Rxa5 {[%emt 0:00:20]} 31. Rb7 $1 {[%emt 0:02:26][%cal Ob7a7] Hoping for Rxa7! White has more active pieces.} Re8 $2 {[%emt 0:03:53][%mdl 8192] Black cannot hold the game after this.} (31... Ne8 $14) 32. Rxa7 $18 {[%emt 0:00:58] White is clearly winning.} Nd5 {[%emt 0:03:11]} 33. Bf2 {[%emt 0:00:22]} (33. Rcxa6 Nxe3+ 34. Ke2 Rxa6 35. Rxa6 Nd5 $18) (33. Raxa6 Nxe3+ 34. Ke2 Rxa6 35. Rxa6 Nd5 $18) 33... Ndb4 {[%emt 0:00:44] [#]} (33... Ra1+ $142 34. Kg2 Nb8 35. Rxa1 Nxc6 36. Nxc6 h6) 34. Rxe6 $3 {[%emt 0:00:05][%cal Re6e8][%mdl 512]} Rxe5 {[%emt 0:02:38]} 35. Rxe5 {[%emt 0:00:06]} Rc8 {[%emt 0:00:34]} 36. Ree7 {[%emt 0:00:22] Weighted Error Value: White=0.10 (very precise) /Black=0.36.  Loses game:     	---       	Black=1      Mistake:       	White=1     	Black=1      Inaccurate:     	White=1     	Black=4      OK:         	White=8     	Black=11     Best:        	White=2     	Black=2      Strong:       	White=2     	Black=1      Brilliant:      	White=1     	---} 1-0

[Event "US Masters 2024"]
[Site "Charlotte"]
[Date "2024.11.29"]
[Round "4.19"]
[White "Fernandez, Daniel Howard"]
[Black "Wang, Tianqi"]
[Result "1/2-1/2"]
[ECO "B13"]
[WhiteElo "2503"]
[BlackElo "2323"]
[Annotator "RC"]
[PlyCount "132"]
[EventDate "2024.09.23"]
[EventType "swiss"]
[EventCountry "USA"]
[SourceTitle "playchess.com"]
[Source "ChessBase"]
[SourceQuality "1"]
[TimeControl "5400+30"]

1. e4 {[%emt 0:11:30]} c6 {[%emt 0:00:17]} 2. d4 {[%emt 0:02:21]} d5 {[%emt 0:00:08]} 3. exd5 {[%emt 0:00:05]} cxd5 {[%emt 0:00:03]} 4. Nf3 {[%emt 0:00:09]} Nc6 {[%emt 0:00:23]} 5. Bb5 {[%emt 0:00:22]} Qa5+ {[%emt 0:03:48]} 6. Nc3 {[%emt 0:00:03]} Bg4 {[%emt 0:00:09]} 7. h3 {[%emt 0:04:59]} Bxf3 {[%emt 0:00:47]} 8. Qxf3 {[%emt 0:00:03]} e6 {[%emt 0:00:04]} 9. O-O {[%emt 0:00:43]} Bd6 {[%emt 0:05:03]} 10. Qg4 {[%emt 0:04:21]} g6 {[%emt 0:02:53]} 11. a3 {[%emt 0:01:11]} Qc7 {[%emt 0:05:06]} 12. Re1 {[%emt 0:02:25]} Kf8 {[%emt 0:00:19]} 13. Bd3 {[%emt 0:02:59]} a6 {[%emt 0:02:17]} 14. Ne2 {[%emt 0:00:13]} Kg7 {[%emt 0:11:31]} 15. Nf4 {[%emt 0:12:09]} Nf6 {[%emt 0:07:07]} 16. Qh4 {[%emt 0:00:02]} Rae8 {[%emt 0:01:41]} 17. Qh6+ {[%emt 0:09:02]} Kxh6 {[%emt 0:20:58]} 18. Nxe6+ {[%emt 0:00:04]} g5 {[%emt 0:00:03]} 19. Bxg5+ {[%emt 0:00:14]} Kh5 {[%emt 0:00:02]} 20. g4+ {[%emt 0:00:19]} Nxg4 {[%emt 0:00:06]} 21. hxg4+ {[%emt 0:00:09]} Kxg4 {[%emt 0:00:03]} 22. Be2+ {[%emt 0:02:17]} Kf5 {[%emt 0:03:44]} 23. Bd3+ {[%emt 0:00:18]} Kg4 {[%emt 0:35:28]} 24. Be2+ {[%emt 0:00:26]} Kf5 {[%emt 0:00:00]} 25. Nxc7 {[%emt 0:00:23]} Bxc7 {[%emt 0:00:00]} 26. Be3 {[%emt 0:00:03]} Rhg8+ {[%emt 0:00:00]} 27. Kf1 {[%emt 0:00:18]} Bh2 {[%emt 0:00:00]} 28. Bd3+ {[%emt 0:00:45]} Kf6 {[%emt 0:00:00]} 29. c3 {[%emt 0:00:02]} Na5 {[%emt 0:00:00]} 30. Ke2 {[%emt 0:00:58]} Nc4 {[%emt 0:00:00]} 31. Bxc4 {[%emt 0:00:32]} dxc4 {[%emt 0:00:00]} 32. Rh1 {[%emt 0:02:56]} Bf4 {[%emt 0:00:13]} 33. Kf3 {[%emt 0:00:02]} Bxe3 {[%emt 0:00:12]} 34. fxe3 {[%emt 0:00:03]} Re6 {[%emt 0:00:48]} 35. Rxh7 {[%emt 0:04:21]} Ke7 {[%emt 0:00:38]} 36. Rh2 {[%emt 0:03:54]} Rf6+ {[%emt 0:00:43]} 37. Ke2 {[%emt 0:00:09]} Rb6 {[%emt 0:00:12]} 38. Rb1 {[%emt 0:00:12]} Rg1 {[%emt 0:00:09]} 39. Rxg1 {[%emt 0:01:05]} Rxb2+ {[%emt 0:00:04]} 40. Kf3 {[%emt 0:00:08]} Rxh2 {[%emt 0:00:07]} 41. a4 {[%emt 0:00:09]} Rb2 {[%emt 0:00:58]} 42. Rg5 {[%emt 0:01:18]} Rb3 {[%emt 0:01:41]} 43. Rc5 {[%emt 0:00:15]} b5 {[%emt 0:00:39]} 44. axb5 {[%emt 0:00:18]} axb5 {[%emt 0:00:03]} 45. Kf4 {[%emt 0:00:14]} Kd6 {[%emt 0:00:26]} 46. e4 {[%emt 0:01:24]} f6 {[%emt 0:00:33]} 47. Rh5 {[%emt 0:00:30]} Rxc3 {[%emt 0:02:23]} 48. Rxb5 {[%emt 0:00:03]} Rd3 {[%emt 0:00:07]} 49. d5 {[%emt 0:00:42]} Rb3 {[%emt 0:00:45]} 50. Ra5 {[%emt 0:00:02]} Rb6 {[%emt 0:00:13]} 51. Ra8 {[%emt 0:00:43]} Kc5 {[%emt 0:00:09]} 52. Rc8+ {[%emt 0:00:11]} Kd4 {[%emt 0:00:51]} 53. Rc6 {[%emt 0:02:42]} Rb1 {[%emt 0:00:42]} 54. Kf5 {[%emt 0:00:18]} Rf1+ {[%emt 0:00:06]} 55. Ke6 {[%emt 0:00:08]} Re1 {[%emt 0:00:29]} 56. d6 {[%emt 0:00:59]} Rxe4+ {[%emt 0:00:13]} 57. Kxf6 {[%emt 0:00:12]} Re8 {[%emt 0:00:55]} 58. d7 {[%emt 0:01:17]} Rd8 {[%emt 0:00:06]} 59. Rd6+ {[%emt 0:00:06]} Ke4 {[%emt 0:00:43]} 60. Ke7 {[%emt 0:00:39]} Rxd7+ {[%emt 0:00:03]} 61. Kxd7 {[%emt 0:00:06]} c3 {[%emt 0:03:49]} 62. Ke6 {[%emt 0:00:07]} c2 {[%emt 0:00:00]} 63. Rc6 {[%emt 0:00:04]} Kd3 {[%emt 0:00:00]} 64. Kd5 {[%emt 0:00:04]} Kd2 {[%emt 0:00:00]} 65. Ke4 {[%emt 0:00:04]} c1=Q {[%emt 0:00:00]} 66. Rxc1 {[%emt 0:00:04]} Kxc1 {[%emt 0:00:00]} 1/2-1/2

[Event "US Masters 2024"]
[Site "Charlotte"]
[Date "2024.11.29"]
[Round "4.20"]
[White "Tari, Aryan"]
[Black "Kaplan, Avi Harrison"]
[Result "1/2-1/2"]
[ECO "B72"]
[WhiteElo "2628"]
[BlackElo "2317"]
[Annotator "TA"]
[PlyCount "95"]
[EventDate "2024.09.23"]
[EventType "swiss"]
[EventCountry "USA"]
[SourceTitle "playchess.com"]
[Source "ChessBase"]
[SourceQuality "1"]
[TimeControl "5400+30"]

{[%evp 33,95,7,8,-74,-75,-192,-195,-280,-247,-228,-172,-170,-172,-177,-175,-394,-389,-406,-367,-385,-401,-396,-183,-198,-221,-181,-218,-205,-168,-166,-206,-223,-224,-215,-210,-221,-216,-591,-587,-567,-593,-550,-470,-504,-68,-63,-52,-69,-20,-62,-65,-68,-76,-554,-500,-1160,-450,-387,-113,-97,-29,-99,-85,-570]} 1. e4 {[%emt 0:00:14]} c5 {[%emt 0:00:03]} 2. Nf3 {[%emt 0:00:04]} d6 {[%emt 0:00:05]} 3. d4 {[%emt 0:00:07]} cxd4 {[%emt 0:00:04]} 4. Nxd4 {[%emt 0:00:04]} Nf6 {[%emt 0:00:05]} 5. Nc3 {[%emt 0:00:05]} a6 {[%emt 0:00:04]} 6. Bd3 {[%emt 0:00:18]} g6 {[%emt 0:01:30]} 7. f3 {[%emt 0:00:15]} Bg7 {[%emt 0:00:07]} 8. Be3 {[%emt 0:00:16]} O-O {[%emt 0:00:47] 8...Nbd7 gains popularity. B72: Sicilian Dragon: 6 Be3, lines with h3+Bc4 and sidelines.} 9. Qd2 {[%emt 0:00:47]} h5 {[%emt 0:03:26]} 10. O-O-O {[%emt 0:01:56]} Nc6 {[%emt 0:03:06]} 11. h4 {[%emt 0:12:25]} Bd7 {[%emt 0:08:45]} 12. Nxc6 {[%emt 0:15:30]} bxc6 {[%emt 0:05:27]} 13. Bc4 {[%emt 0:02:25]} Qa5 {[%emt 0:05:11]} 14. Bh6 {[%emt 0:08:50]} Rab8 $146 {[%emt 0:06:49]} ({Predecessor:} 14... Rfb8 15. Bxg7 Kxg7 16. Bb3 Be6 17. Bxe6 fxe6 18. a3 Rb7 19. Nb1 Qb6 20. Qc3 Rab8 {½-½ Doraszelski,A (2250)-You,Q (1880) Paracin op-A 17th 2024 (3)}) 15. Bb3 {[%emt 0:00:57]} Rfc8 {[%emt 0:22:59]} 16. Rhe1 {[%emt 0:12:51]} Bh8 {[%emt 0:09:19]} 17. e5 {[%emt 0:12:43]} dxe5 {[%emt 0:01:02]} 18. Qg5 {[%emt 0:01:39]} (18. Ne4 $11 Qxd2+ 19. Bxd2) 18... Bf5 $17 {[%emt 0:00:57]} 19. g4 {[%emt 0:01:14]} (19. Qd2 $17) 19... hxg4 $19 {[%emt 0:01:30]} 20. h5 {[%emt 0:01:59]} (20. Rg1 $142 Rxb3 21. cxb3) 20... Rxb3 {[%emt 0:00:50]} (20... gxf3 $2 21. hxg6 Rxb3 22. Qxf5 $18) 21. hxg6 {[%emt 0:06:27]} Bxg6 {[%emt 0:01:08]} 22. cxb3 {[%emt 0:03:56]} gxf3 {[%emt 0:01:51]} 23. Rxe5 {[%emt 0:00:15]} Qc7 $1 {[%emt 0:02:47]} (23... Nd5 24. Qxe7 f2 (24... Nxe7 25. Rxa5 Nd5 26. Rf1 $11) (24... Bxe5 25. Qxe5 f6 26. Qe6+ Kh8 27. Qxc8+ Kh7 28. Rh1 Qc5 29. Bf8+ Kg8 30. Bxc5+) 25. Rf1 $17) 24. Rf5 $2 {[%emt 0:08:30]} (24. Rh1) 24... Qh2 $1 $19 {[%emt 0:05:40]} 25. Rd2 {[%emt 0:00:06]} (25. Rxf3 $2 Qc2#) 25... Qh1+ {[%emt 0:01:48]} 26. Rd1 {[%emt 0:00:01]} Qh3 $1 {[%emt 0:00:22]} 27. Rf4 {[%emt 0:00:06]} Nh7 {[%emt 0:02:46]} (27... f2 $142 28. Rxf2 Ng4) 28. Qh4 $19 {[%emt 0:02:07]} Qg2 $1 {[%emt 0:00:48]} (28... Qxh4 29. Rxh4 Bxc3 30. bxc3 $14) 29. Rd2 {[%emt 0:00:16]} Qg1+ {[%emt 0:00:42]} 30. Nd1 {[%emt 0:01:17] [#]} Qc5+ $1 {[%emt 0:03:40]} 31. Rc4 {[%emt 0:00:01]} Qf5 {[%emt 0:00:21]} 32. Rcc2 {[%emt 0:00:43]} Bf6 {[%emt 0:01:58]} 33. Qc4 {[%emt 0:02:11]} Ng5 {[%emt 0:02:42]} 34. Ne3 {[%emt 0:00:32]} Qh3 {[%emt 0:01:08]} 35. Ng4 $2 {[%emt 0:01:02]} (35. Qg4 {is tougher.}) 35... Ne4 $19 {[%emt 0:04:09]} 36. Nxf6+ {[%emt 0:00:21]} exf6 {[%emt 0:00:37]} 37. Rh2 {[%emt 0:00:24]} Qg3 {[%emt 0:00:21]} 38. Qf1 {[%emt 0:00:15]} Rd8 $2 {[%emt 0:01:52]} (38... Nc5 $19 39. Rxc5 Qxh2) 39. Rh3 $1 $15 {[%emt 0:00:59]} (39. Qxa6 $2 Qe1#) 39... Qe5 {[%emt 0:01:01]} 40. Rxf3 {[%emt 0:01:28]} (40. Qxa6 Ng3 41. Bd2 Qf5 (41... Bxc2 42. Rxg3+ Qxg3 43. Qb6 Rxd2 44. Kxd2 f2 45. Qa6 Qg2 46. Kc3 f1=Q 47. Qxf1 Qxf1 48. Kxc2 f5 49. b4 f4 50. b5 cxb5 51. Kc3 Qc4+ 52. Kd2 Qd4+ 53. Ke2 Qe3+ 54. Kd1 f3 55. Kc2 f2 56. b4 f1=Q 57. Kb2 Qfc1#) (41... Ne2+ 42. Kb1 Bxc2+ 43. Ka1 f2 44. Rh1 Qd5 45. Rb1 Qxd2 46. Qb6 Bxb1 47. Qxf2 Qd1 48. a4 Bg6+ 49. Ka2 Nc1+ 50. Ka1 Qxb3 51. Qxf6 Qxa4#) 42. Qxc6 f2 (42... Qxh3 43. Qxf3 Bh5 44. Ba5 Bxf3 45. Bxd8 Qe6 46. Rd2 Qc6+ 47. Rc2 Qd5 48. Rd2 Qc5+ 49. Rc2 Qg1+ 50. Kd2 Qd4+ 51. Ke1 Qe3+ 52. Re2 Qxe2#) (42... Qxh3 43. Kb1 Rxd2 44. a4 f2 45. Ka2 Bxc2 46. Qe8+ Kg7 47. Qc6 f1=Q 48. Qc5 Qg4 49. Qc4 Qgxc4 50. bxc4 Qxc4+ 51. b3 Bxb3+ 52. Kb1 Qf1#)) (40. Qxf3 $2 Ng5 41. Qe2 Nxh3 $19 (41... Qxe2 $2 42. Rxe2 Nxh3 43. Bd2 $19)) 40... Nc5 {[%emt 0:01:38]} (40... Ng5 $15 {might be stronger.} 41. Bxg5 (41. Rxc6 Qe4) (41. Re2 $2 Qa5 $19) 41... Qxg5+ 42. Rf4 Bd3 (42... Bxc2 43. Kxc2 Qg6+ 44. Kc3 $15)) 41. Re2 {[%emt 0:01:26]} (41. Re3 {simplifies} Nd3+ 42. Qxd3 Bxd3 43. Rxe5 fxe5 44. Rxc6 Bb5 45. Rb6) 41... Qh5 $1 {[%emt 0:00:18]} 42. Bd2 {[%emt 0:00:11]} Nd3+ {[%emt 0:00:32]} 43. Rxd3 $4 {[%emt 0:00:01][%mdl 8192]} (43. Kd1 $17) 43... Rxd3 $19 {[%emt 0:00:19]} ({Not} 43... Bxd3 44. Qxf6 Qxe2 45. Qxd8+ Kg7 (45... Kh7 46. Qh4+ Kg8 47. Qf6 $11) 46. Qg5+ (46. Bc3+ Kg6 $17) 46... Bg6 47. Qf4 $11 (47. Bc3+ Kh7 $11)) 44. Qf2 {[%emt 0:01:09]} (44. Rg2 $142 Rf3 45. Rxg6+ fxg6 46. Qxa6) 44... Kg7 {[%emt 0:00:38]} (44... Rf3 $142 45. Re8+ Kg7) 45. Be3 $19 {[%emt 0:02:11]} Qh1+ $2 {[%emt 0:00:48]} (45... Rd8 $19 {has better winning chances.} 46. Bb6 Rd5) 46. Re1 $17 {[%emt 0:00:38] [#]} Qd5 {[%emt 0:00:11]} ({Black should play} 46... Qh3 $1 $17 {Threatens to win with ...a5.} 47. b4 Rd5) 47. Qf4 {[%emt 0:00:25]} (47. Qh2 $11 {remains equal.} Qh5 48. Qxh5 Bxh5 49. Rg1+ Kh7 50. Rg3) 47... Qh5 {[%emt 0:00:50]} 48. Bd4 $2 {[%emt 0:00:00][%mdl 8192]} (48. b4 $17) 1/2-1/2